Workbook

Sheet पारिवारिक बजट
B1: स्मिथ परिवार का बजट
B2: वर्ष: | C2: 2013
B4: नकद उपलब्ध | C4: जन | D4: फ़र | E4: मार्च | F4: अप्रैल | G4: मई | H4: जून | I4: जुलाई | J4: अग | K4: सितं | L4: अक्टू | M4: नवं | N4: दिसं | O4: YTD कुल | P4: रूझान
B5: मासिक नकद | C5: =tblIncome[[#Totals],[जन]]-tblExpenses[[#Totals],[जन]] -> रु 1,220.00 | D5: =tblIncome[[#Totals],[फ़र]]-tblExpenses[[#Totals],[फ़र]] -> रु 1,587.00 | E5: =tblIncome[[#Totals],[मार्च]]-tblExpenses[[#Totals],[मार्च]] -> रु 1,174.00 | F5: =tblIncome[[#Totals],[अप्रैल]]-tblExpenses[[#Totals],[अप्रैल]] -> रु 1,445.00 | G5: =tblIncome[[#Totals],[मई]]-tblExpenses[[#Totals],[मई]] -> रु 1,391.00 | H5: =tblIncome[[#Totals],[जून]]-tblExpenses[[#Totals],[जून]] -> रु 1,434.00 | I5: =tblIncome[[#Totals],[जुलाई]]-tblExpenses[[#Totals],[जुलाई]] -> रु 1,085.00 | J5: =tblIncome[[#Totals],[अग]]-tblExpenses[[#Totals],[अग]] -> रु 1,181.00 | K5: =tblIncome[[#Totals],[सितं]]-tblExpenses[[#Totals],[सितं]] -> रु 1,445.00 | L5: =tblIncome[[#Totals],[अक्टू]]-tblExpenses[[#Totals],[अक्टू]] -> रु 1,466.00 | M5: =tblIncome[[#Totals],[नवं]]-tblExpenses[[#Totals],[नवं]] -> रु 0.00 | N5: =tblIncome[[#Totals],[दिसं]]-tblExpenses[[#Totals],[दिसं]] -> रु 0.00 | O5: =tblIncome[[#Totals],[YTD कुल]]-tblExpenses[[#Totals],[YTD कुल]] -> रु 13,428.00
B7: आय प्रकार | C7: जन | D7: फ़र | E7: मार्च | F7: अप्रैल | G7: मई | H7: जून | I7: जुलाई | J7: अग | K7: सितं | L7: अक्टू | M7: नवं | N7: दिसं | O7: YTD कुल | P7: रूझान
B8: आय 1 | C8: रु 4,000.00 | D8: रु 4,410.00 | E8: रु 4,019.00 | F8: रु 4,263.00 | G8: रु 4,123.00 | H8: रु 4,308.00 | I8: रु 4,162.00 | J8: रु 4,165.00 | K8: रु 4,248.00 | L8: रु 4,324.00 | O8: =SUM(tblIncome[[#This Row],[जन]:[दिसं]]) -> रु 42,022.00
B9: आय 2 | C9: रु275.00 | D9: रु296.00 | E9: रु251.00 | F9: रु269.00 | G9: रु252.00 | H9: रु252.00 | I9: रु262.00 | J9: रु258.00 | K9: रु296.00 | L9: रु270.00 | O9: =SUM(tblIncome[[#This Row],[जन]:[दिसं]]) -> $2,681.00
B10: अन्य आय | C10: रु500.00 | D10: रु507.00 | E10: रु551.00 | F10: रु556.00 | G10: रु588.00 | H10: रु534.00 | I10: रु533.00 | J10: रु585.00 | K10: रु560.00 | L10: रु520.00 | O10: =SUM(tblIncome[[#This Row],[जन]:[दिसं]]) -> $5,434.00
B11: कुल आय | C11: =SUBTOTAL(109,tblIncome[जन]) -> रु 4,775.00 | D11: =SUBTOTAL(109,tblIncome[फ़र]) -> रु 5,213.00 | E11: =SUBTOTAL(109,tblIncome[मार्च]) -> रु 4,821.00 | F11: =SUBTOTAL(109,tblIncome[अप्रैल]) -> रु 5,088.00 | G11: =SUBTOTAL(109,tblIncome[मई]) -> रु 4,963.00 | H11: =SUBTOTAL(109,tblIncome[जून]) -> रु 5,094.00 | I11: =SUBTOTAL(109,tblIncome[जुलाई]) -> रु 4,957.00 | J11: =SUBTOTAL(109,tblIncome[अग]) -> रु 5,008.00 | K11: =SUBTOTAL(109,tblIncome[सितं]) -> रु 5,104.00 | L11: =SUBTOTAL(109,tblIncome[अक्टू]) -> रु 5,114.00 | M11: =SUBTOTAL(109,tblIncome[नवं]) -> रु 0.00 | N11: =SUBTOTAL(109,tblIncome[दिसं]) -> रु 0.00 | O11: =SUBTOTAL(109,tblIncome[YTD कुल]) -> रु 50,137.00
B13: व्यय | C13: जन | D13: फ़र | E13: मार्च | F13: अप्रैल | G13: मई | H13: जून | I13: जुलाई | J13: अग | K13: सितं | L13: अक्टू | M13: नवं | N13: दिसं | O13: YTD कुल | P13: रूझान
B14: घरेलू | C14: रु 1,500.00 | D14: रु 1,500.00 | E14: रु 1,500.00 | F14: रु 1,500.00 | G14: रु 1,500.00 | H14: रु 1,500.00 | I14: रु 1,500.00 | J14: रु 1,500.00 | K14: रु 1,500.00 | L14: रु 1,500.00 | O14: =SUM(tblExpenses[[#This Row],[जन]:[दिसं]]) -> रु 15,000.00
B15: किराना | C15: रु 250.00 | D15: रु 331.00 | E15: रु 299.00 | F15: रु 333.00 | G15: रु 324.00 | H15: रु 313.00 | I15: रु 338.00 | J15: रु 225.00 | K15: रु 258.00 | L15: रु 322.00 | O15: =SUM(tblExpenses[[#This Row],[जन]:[दिसं]]) -> रु 2,993.00
B16: कार का भुगतान | C16: रु 345.00 | D16: रु 345.00 | E16: रु 345.00 | F16: रु 345.00 | G16: रु 345.00 | H16: रु 345.00 | I16: रु 345.00 | J16: रु 345.00 | K16: रु 345.00 | L16: रु 345.00 | O16: =SUM(tblExpenses[[#This Row],[जन]:[दिसं]]) -> रु 3,450.00
B17: बीमा | C17: रु 120.00 | D17: रु 120.00 | E17: रु 120.00 | F17: रु 120.00 | G17: रु 120.00 | H17: रु 120.00 | I17: रु 120.00 | J17: रु 120.00 | K17: रु 120.00 | L17: रु 120.00 | O17: =SUM(tblExpenses[[#This Row],[जन]:[दिसं]]) -> रु 1,200.00
B18: घर का फ़ोन | C18: रु 50.00 | D18: रु 50.00 | E18: रु 50.00 | F18: रु 50.00 | G18: रु 50.00 | H18: रु 50.00 | I18: रु 50.00 | J18: रु 50.00 | K18: रु 50.00 | L18: रु 50.00 | O18: =SUM(tblExpenses[[#This Row],[जन]:[दिसं]]) -> रु 500.00
B19: सेल फ़ोन | C19: रु 72.00 | D19: रु 70.00 | E19: रु 80.00 | F19: रु 70.00 | G19: रु 75.00 | H19: रु 80.00 | I19: रु 90.00 | J19: रु 73.00 | K19: रु 75.00 | L19: रु 70.00 | O19: =SUM(tblExpenses[[#This Row],[जन]:[दिसं]]) -> रु 755.00
B20: केबल टीवी | C20: रु 60.00 | D20: रु 63.00 | E20: रु 65.00 | F20: रु 60.00 | G20: रु 65.00 | H20: रु 60.00 | I20: रु 63.00 | J20: रु 60.00 | K20: रु 63.00 | L20: रु 60.00 | O20: =SUM(tblExpenses[[#This Row],[जन]:[दिसं]]) -> रु 619.00
B21: इंटरनेट | C21: रु 45.00 | D21: रु 45.00 | E21: रु 45.00 | F21: रु 45.00 | G21: रु 45.00 | H21: रु 45.00 | I21: रु 45.00 | J21: रु 45.00 | K21: रु 45.00 | L21: रु 45.00 | O21: =SUM(tblExpenses[[#This Row],[जन]:[दिसं]]) -> रु 450.00
B22: बिजली | C22: रु 155.00 | D22: रु 155.00 | E22: रु 158.00 | F22: रु 160.00 | G22: रु 165.00 | H22: रु 200.00 | I22: रु 340.00 | J22: रु 350.00 | K22: रु 240.00 | L22: रु 180.00 | O22: =SUM(tblExpenses[[#This Row],[जन]:[दिसं]]) -> रु 2,103.00
B23: पानी | C23: रु 35.00 | D23: रु 35.00 | E23: रु 37.00 | F23: रु 39.00 | G23: रु 45.00 | H23: रु 42.00 | I23: रु 42.00 | J23: रु 36.00 | K23: रु 38.00 | L23: रु 40.00 | O23: =SUM(tblExpenses[[#This Row],[जन]:[दिसं]]) -> रु 389.00
B24: गैस | C24: रु 50.00 | D24: रु 45.00 | E24: रु 40.00 | F24: रु 40.00 | G24: रु 42.00 | H24: रु 50.00 | I24: रु 55.00 | J24: रु 40.00 | K24: रु 43.00 | L24: रु 30.00 | O24: =SUM(tblExpenses[[#This Row],[जन]:[दिसं]]) -> रु 435.00
B25: मोनरंजन | C25: रु 123.00 | D25: रु 92.00 | E25: रु 58.00 | F25: रु 131.00 | G25: रु 46.00 | H25: रु 105.00 | I25: रु 84.00 | J25: रु 108.00 | K25: रु 132.00 | L25: रु 136.00 | O25: =SUM(tblExpenses[[#This Row],[जन]:[दिसं]]) -> रु 1,015.00
B26: ट्यूशन | C26: रु 550.00 | D26: रु 550.00 | E26: रु 550.00 | F26: रु 550.00 | G26: रु 550.00 | H26: रु 550.00 | I26: रु 550.00 | J26: रु 550.00 | K26: रु 550.00 | L26: रु 550.00 | O26: =SUM(tblExpenses[[#This Row],[जन]:[दिसं]]) -> रु 5,500.00
B27: बचत | C27: रु 200.00 | D27: रु 225.00 | E27: रु 300.00 | F27: रु 200.00 | G27: रु 200.00 | H27: रु 200.00 | I27: रु 250.00 | J27: रु 325.00 | K27: रु 200.00 | L27: रु 200.00 | O27: =SUM(tblExpenses[[#This Row],[जन]:[दिसं]]) -> रु 2,300.00
B28: कुल व्यय | C28: =SUBTOTAL(109,tblExpenses[जन]) -> रु 3,555.00 | D28: =SUBTOTAL(109,tblExpenses[फ़र]) -> रु 3,626.00 | E28: =SUBTOTAL(109,tblExpenses[मार्च]) -> रु 3,647.00 | F28: =SUBTOTAL(109,tblExpenses[अप्रैल]) -> रु 3,643.00 | G28: =SUBTOTAL(109,tblExpenses[मई]) -> रु 3,572.00 | H28: =SUBTOTAL(109,tblExpenses[जून]) -> रु 3,660.00 | I28: =SUBTOTAL(109,tblExpenses[जुलाई]) -> रु 3,872.00 | J28: =SUBTOTAL(109,tblExpenses[अग]) -> रु 3,827.00 | K28: =SUBTOTAL(109,tblExpenses[सितं]) -> रु 3,659.00 | L28: =SUBTOTAL(109,tblExpenses[अक्टू]) -> रु 3,648.00 | M28: =SUBTOTAL(109,tblExpenses[नवं]) -> रु 0.00 | N28: =SUBTOTAL(109,tblExpenses[दिसं]) -> रु 0.00 | O28: =SUBTOTAL(109,tblExpenses[YTD कुल]) -> रु 36,709.00
